Cogmind - Beta 13 X1 @@@ ROGUE MODE // 2023.10.10 @ 01:09:53 Player: Decinym Result: Destroyed by as-58128 with Assembled Heavy Rifle Performance ------------- Evolutions (0) 0 Regions Visited (2) 400 Robots Destroyed (18) 90 Value Destroyed (418) 418 Prototype IDs (0) 0 Alien Tech Used (0) 0 Bonus (0) 0 TOTAL SCORE: 908 Bonus ------- None Cogmind --------- Core Integrity 0/250 Matter 113/300 Energy 124/250 System Corruption 3% Temperature Warm (108) Movement Treading (240) Ox1 Location -10/Mines Parts ------- > --- POWER (1) -------- Ion Engine > --- PROPULSION (2) --- Light Treads Light Treads > --- UTILITY (2) ------ High-capacity Storage Unit Core Shielding > --- WEAPON (2) ------- Small Laser Beam Cannon > --- INVENTORY (20) --- Ion Engine Aluminum Leg Aluminum Leg Compact Wheel High-capacity Matter Pod (60) EM Pulse Gun Medium Laser Grenade Launcher Peak State ------------ > --- POWER ------------ Ion Engine > --- PROPULSION ------- Aluminum Leg Aluminum Leg > --- UTILITY ---------- Medium Storage Unit Propulsion Shielding > --- WEAPON ----------- Assault Rifle Light Assault Rifle > --- INVENTORY -------- Ion Engine Light Ion Engine Light Treads Light Treads Aluminum Leg Compact Wheel Compact Wheel Medium Laser Small Laser Grenade Launcher [Rating: 8] Favorites ----------- Power Ion Engine Engine Ion Engine Propulsion Light Treads Treads Light Treads Leg Aluminum Leg Utility Core Shielding Storage High-capacity Storage Unit Protection Core Shielding Weapon Assault Rifle Energy Gun Small Laser Energy Cannon Beam Cannon Ballistic Gun Assault Rifle Launcher Grenade Launcher Build | -11 -10 -10 ------- Run | Jun Mat Min Slots Evolved . | . . . Power . | . . . Propulsion . | . . . Utility . | . . . Weapon . | . . . Parts Attached 21 | . 15 6 Power 3 | . 2 1 Engine 3 | . 2 1 Core . | . . . Reactor . | . . . Propulsion 7 | . 5 2 Treads 4 | . 2 2 Leg 3 | . 3 . Wheel . | . . . Hover . | . . . Flight . | . . . Utility 4 | . 4 . Device . | . . . Storage 2 | . 2 . Processor . | . . . Hackware . | . . . Protection 2 | . 2 . Artifact . | . . . Weapon 7 | . 4 3 Energy Gun 1 | . . 1 Energy Cannon 1 | . . 1 Ballistic Gun 2 | . 2 . Ballistic Cannon . | . . . Launcher 3 | . 2 1 Special Weapon . | . . . Impact Weapon . | . . . Slashing Weapon . | . . . Piercing Weapon . | . . . Special Melee Weapon . | . . . Unidentified Prototypes . | . . . Parts Lost 6 | . . 6 Power 1 | . . 1 Propulsion 2 | . . 2 Utility . | . . . Weapon 3 | . . 3 Highest Loss Streak 6 | . . 6 To Critical Strikes . | . . . Average Slot Usage (%) 98 | . 98 98 Engine 14 | . 14 14 Treads 14 | . 7 27 Leg 13 | . 20 . Storage 14 | . 14 14 Protection 12 | . 12 14 Ballistic Gun 25 | . 26 25 Launcher 1 | . 1 . Naked Turns . | . . . Heaviest Build 51 | 13 51 49 Greatest Support 40 | 20 40 40 Greatest Overweight (x) 2 | . 2 1 Average Overweight (x) . | . . 1 Largest Inventory Capacity 20 | . 20 20 Average Capacity 15 | . 12 20 Most Carried 14 | . 14 14 Average Carried 11 | . 10 13 Final Capacity 20 | 8 20 20 Final Carried 14 | 6 14 8 Class Distribution -------------------- 100% | Mutant Dominant Class ---------------- Mutant | -10/Materials Mutant | -10/Mines Resources | -11 -10 -10 ----------- Run | Jun Mat Min Matter Collected 604 | 200 404 . Remotely . | . . . Salvage Created 548 | . 527 21 Parts 41 | . 41 . Haulers Intercepted 2 | . 2 . Recyclers Shooed 1 | . 1 . Parts Field Recycled . | . . . Retrieved Matter . | . . . Parts Self-Destructed . | . . . Prevented . | . . . Kills | -11 -10 -10 ------- Run | Jun Mat Min Combat Hostiles Destroyed 20 | . 12 8 Guns 11 | . 10 1 Cannons 1 | . . 1 AOE 8 | . 2 6 Classes Destroyed 6 | . 5 1 Builder 2 | . 2 . Hauler 2 | . 2 . Watcher 2 | . 2 . Swarmer 3 | . 3 . Grunt 9 | . 9 . Assembled 8 | . . 8 Best Kill Streak 8 | . 5 8 Combat Bots Only 8 | . 3 8 Max Kills in Single Turn 3 | . 3 3 Gunslinging . | . . . Exploded 3 | . 1 3 Melee . | . . . Uniques/NPCs Destroyed . | . . . Combat | -11 -10 -10 -------- Run | Jun Mat Min Damage Taken 1170 | . 357 813 Core 261 | . 55 206 Absorbed by Shields . | . . . Redirected to Shielding 49 | . 8 41 Core Remaining (%) 100 | 100 . . Volleys Fired 72 | . 58 14 Largest 2 | . 2 2 Hottest 100 | . 40 100 Shots Fired 126 | . 110 16 Gun 106 | . 104 2 Cannon 5 | . . 5 Launcher 15 | . 6 9 Special . | . . . Kinetic 104 | . 104 . Thermal 7 | . . 7 Explosive 15 | . 6 9 Electromagnetic . | . . . Robot Hit Streak 10 | . 10 8 Robot Miss Streak 7 | . 7 1 Penetration Max . | . . . Secondary Targets 2 | . 2 . Max Gunslinging Chain 1 | . 1 . Shots Hit Robots 72 | . 64 8 Core Hits 57 | . 36 21 Critical Kills . | . . . Critical Parts Destroyed . | . . . Critical Strikes . | . . . Melee Attacks . | . . . Impact . | . . . Slashing . | . . . Piercing . | . . . Sneak Attacks . | . . . Combat Hostiles . | . . . Follow-up Attacks . | . . . Damage Inflicted 1485 | . 952 533 Guns 714 | . 690 24 Cannons 71 | . . 71 Explosions 690 | . 258 432 Melee . | . . . Ramming 10 | . 4 6 Kinetic 690 | . 690 . Thermal 95 | . . 95 Explosive 690 | . 258 432 Electromagnetic . | . . . Impact . | . . . Slashing . | . . . Piercing . | . . . Highest Corruption 3 | . . 3 Average Corruption 3 | . . 3 Corruption Purged . | . . . Corruption Blocked . | . . . Overload Shots . | . . . Overflow Damage . | . . . Projectiles . | . . . Explosions . | . . . Melee . | . . . Knockbacks . | . . . Impact . | . . . Kinetic . | . . . Secondary . | . . . Self-Inflicted Damage 9 | . 3 6 Shots 2 | . 1 1 Rammed 1 | . . 1 Targets Rammed 2 | . 1 1 Kicked 1 | . 1 . Crushed . | . . . Highest Temperature 108 | . 12 108 Average Temperature 26 | . 6 40 Received Heat Transfer 315 | . 135 180 Siege Activations . | . . . Robots Corrupted . | . . . Combat Hostiles . | . . . Parts Fried . | . . . Impact Corruptions . | . . . Robots Melted . | . . . Combat Hostiles . | . . . Parts Melted . | . . . Heat Transferred 198 | . . 198 Parts Sabotaged . | . . . Parts Stolen . | . . . Parts Stripped . | . . . Power Chain Reactions . | . . . Missiles Intercepted . | . . . Alert | -11 -10 -10 ------- Run | Jun Mat Min Peak Influence 252 | . 252 55 Initial 55 | . . 55 Average 94 | . 121 42 Maximum Alert Level 1 | . 1 . Low Security (%) 91 | . 86 100 Level 1 8 | . 13 . Level 2 . | . . . Level 3 . | . . . Level 4 . | . . . Level 5 . | . . . High Security . | . . . Max Security . | . . . Squads Dispatched 3 | . 3 . Investigation 1 | . 1 . Extermination . | . . . Reinforcement 2 | . 2 . Assault . | . . . Garrison . | . . . Intercept . | . . . Searches Triggered . | . . . Construction Impeded . | . . . Haulers Reinforced . | . . . Active Scanning Responses . | . . . Cargo Convoy Interrupts . | . . . Stealth | -11 -10 -10 --------- Run | Jun Mat Min Distress Signals 1 | . 1 . Communications Jammed . | . . . Distress Signals . | . . . Times Spotted 46 | . 24 22 Peak Tracking Total 16 | . 5 16 Tactical Retreats 2 | . 1 1 Traps | -11 -10 -10 ------- Run | Jun Mat Min Traps Triggered 1 | . 1 . Indirectly . | . . . Trap Hack Attempts . | . . . Triggered . | . . . Disarmed . | . . . Reprogrammed . | . . . Reused . | . . . Traps Extracted . | . . . Installed . | . . . Triggered . | . . . Machines | -11 -10 -10 ---------- Run | Jun Mat Min Machines Disabled 1 | . 1 . Max in Single Turn 1 | . 1 . Machines Repaired . | . . . Machines Sabotaged . | . . . Overloaded Fab Kills . | . . . Hacking | -11 -10 -10 --------- Run | Jun Mat Min Machines Accessed 1 | . 1 . Terminals 1 | . 1 . Fabricators . | . . . Repair Stations . | . . . Recycling Units . | . . . Scanalyzers . | . . . Garrison Access . | . . . Total Hacks 1 | . 1 . Successful 1 | . 1 . Failed . | . . . Catastrophic . | . . . Database Lockouts . | . . . Manual 1 | . 1 . Terminals 1 | . 1 . Fabricators . | . . . Repair Stations . | . . . Recycling Units . | . . . Scanalyzers . | . . . Garrison Access . | . . . Terminal Hacks . | . . . Fabricator Hacks . | . . . Repair Station Hacks . | . . . Recycling Unit Hacks . | . . . Scanalyzer . | . . . Garrison Access Hacks . | . . . Unauthorized Hacks 1 | . 1 . Terminals 1 | . 1 . Assimilate 1 | . 1 . Fabricators . | . . . Repair Stations . | . . . Recycling Units . | . . . Scanalyzers . | . . . Garrison Access . | . . . Data Cores Recovered . | . . . Used . | . . . Hacking Detections . | . . . Full Trace Events . | . . . Feedback Events . | . . . Feedback Blocked . | . . . Robot Schematics Acquired . | . . . Robots Built . | . . . Authchips . | . . . Time . | . . . Total Robot Build Rating . | . . . Part Schematics Acquired . | . . . Parts Built . | . . . Authchips . | . . . Time . | . . . Total Part Build Rating . | . . . Parts Repaired . | . . . Time . | . . . Parts Recycled . | . . . Recycled Matter . | . . . Retrieved Matter . | . . . Retrieved Components . | . . . Parts Scanalyzed . | . . . Part Schematics Acquired . | . . . Parts Damaged . | . . . Bothacking | -11 -10 -10 ------------ Run | Jun Mat Min Used RIF Installer . | . . . Robots Hacked . | . . . Non-combat . | . . . Combat . | . . . Robot Hacks Applied . | . . . Relay Couplers Released . | . . . Fabnet Peak Effective % . | . . . Robots Rewired . | . . . Allies Hacked . | . . . Hacks Repelled . | . . . Allies | -11 -10 -10 -------- Run | Jun Mat Min Total Allies 4 | . 1 3 Largest Group 3 | . 1 3 Highest-Rated Group 40 | . 10 40 Highest-Rated Ally 16 | . 10 16 Total Orders . | . . . Ally Attacks 2 | . . 2 Total Damage 29 | . . 29 Kills . | . . . Allies Corrupted . | . . . Allies Melted . | . . . Intel | -11 -10 -10 ------- Run | Jun Mat Min Robot Analysis Total . | . . . Derelict Logs Recovered . | . . . Drone Launches . | . . . Drone Recoveries . | . . . Exploration | -11 -10 -10 ------------- Run | Jun Mat Min Turns Passed 1536 | . 1017 519 Spaces Moved 737 | 1 536 200 Core . | . . . Treads 316 | . 116 200 Legs 421 | 1 420 . Wheels . | . . . Hover . | . . . Flight . | . . . Fastest Speed 120 | 120 120 240 Average Speed 172 | 120 147 240 Slowest Speed 260 | 120 260 240 Overloaded Moves . | . . . Propulsion Burnouts . | . . . Robots Hopped . | . . . Cave-ins Triggered . | . . . Exploration Rate (%) 44 | 2 77 53 Regions Visited 2 Branch Regions 1 Pre-discovered Areas 1 | . . 1 Known Exits Taken . | . . . Unknown Exits Taken 2 | 1 1 . Scrap Searched . | . . . Spaces Dug 5 | . 5 . Terrain Destroyed 32 | . 15 17 Melee . | . . . Projectile . | . . . AOE 32 | . 15 17 Terrain Rammed . | . . . Walls Destroyed . | . . . Machines Disabled . | . . . Actions | -11 -10 -10 --------- Run | Jun Mat Min Total 884 | . 663 221 Wait 34 | . 34 . Move 735 | . 535 200 Hop . | . . . Pick Up 10 | . 10 . Fast Attach 3 | . 3 . Attach 6 | . . 6 Detach . | . . . Swap 12 | . 12 . Drop 10 | . 10 . Fire 72 | . 58 14 Melee . | . . . Ram . | . . . Kick 1 | . 1 . Crush 1 | . . 1 Escape Stasis . | . . . Rewire . | . . . Trap . | . . . Miscellaneous . | . . . Route ------- -11/Junkyard -10/Materials (discovered 4 exits: [*Mat x3] / [*Min]) -10/Mines (discovered 2 exits: [*Mat x2]) History --------- Turn | Location | Event 1 | -11/Junkyard | Discovered new exit (range 0) 1 | -11/Junkyard | Entered Materials 263 | -10/Materials | Discovered new exit (range 7) 318 | -10/Materials | Build established: Mutant 337 | -10/Materials | Discovered new exit (range 5) 442 | -10/Materials | Discovered new exit (range 12) 642 | -10/Materials | Discovered new exit (range 6) 1018 | -10/Materials | Entered Mines 1059 | -10/Mines | Assisted by bots powering up and referring to "LRC-V3" 1194 | -10/Mines | Discovered new exit (range 7) 1351 | -10/Mines | Learned location of Storage (-9) 1359 | -10/Mines | Discovered new exit (range 9) 1456 | -10/Mines | Assembled infested the area 1493 | -10/Mines | Core integrity fell below 50% 1522 | -10/Mines | Core integrity fell below 20% 1537 | -10/Mines | Destroyed by as-58128 with Assembled Heavy Rifle Last Messages --------------- 01506_ Critical hit (Burn: +80). 01506_ as-72120 destroyed. 01507_ The unstable cave ceiling collapses. 01508_ as-01476 destroyed. 01511_ The unstable cave ceiling collapses. 01515_ as-40340 destroyed. 01516_ The unstable cave ceiling collapses. 01516_ Critical hit (Burn: +80). 01517_ The unstable cave ceiling collapses. 01517_ Lgt. Treads destroyed. 01517_ as-18671 destroyed. 01517_ as-44495 destroyed. 01517_ as-27036 destroyed. 01520_ The unstable cave ceiling collapses. 01522_ Grenade Launcher destroyed. 01522_ System corrupted by crushing effect (+3). 01524_ as-03854 destroyed. 01525_ Ion Engine destroyed. 01528_ as-20852 destroyed. 01531_ The unstable cave ceiling collapses. Map ----- +----------------------------------------------------+ | ????????# !#### #?# ### < #? | | ????????#| #??# #?## ##?## ##? | | ???????# ! ##??# #??## #???## ##?? | | ??????# #???# ###?# #????####??? | | ??????# #???# ### #??????????? | | ??????# ##???### #??????????? | | ??????##!!##??????#"##########?????? | | ???????###???????##%###?## ##????? | | ???????????????### ### #????? | | ???????????????? #????? | | ????????????????# = ##????? | | ???????????# %%!# ##?????? | | ??????????# =! #?????? | | ?????????# # # ##????? | | ???????? # ?# ## ?????? | | ???????# ???# ?# = # ?????? | | ???????## ???## # # # % #?????? | | ????????##????# # #?????? | | ????????????#### = # ##????? | | ???????????## % ## #????? | | ?????????? a #????? | | ????????????## #????? | | ????????????# #????? | | ?????????????# # %# #????? | | ?????????????# # #????? | | ???????????????# %@ # ##????? | | ?????????????# ##?????? | | ??????????# ### ## #??????? | | ???????????????????###?######??????? | | ???????????????????????????????????? | | ???????????????????????????????????? | | ???????????????????????????????????? | | ???????????????????????????????????? | | ???????????????????????????????????? | | ???????????????????????????????????? | | ???????????????????????????????????? | | ???????????????????????????????????? | | ???????????????????????????????????? | | ???????????????????????????????????? | | ???????????????????????????????????? | | | | | | | | | | | | | | | | | | | | | +----------------------------------------------------+ Best States ------------- Heat Dissipation 25 Energy Generation 10 Energy Capacity 250 Matter Stores 300 Matter Capacity 300 Sight Range 16 Terrain Scan Density 10 Core Shielding 20 Propulsion Shielding 33 Evasion (%) 55 Recoil Reduction 2 Item Schematics ----------------- None Robot Schematics ------------------ None Fabricated ------------ Nothing Alien Tech Used ----------------- None Achievements -------------- None Challenges ------------ None Game ------ Seed BlastArmoredMonowheel Manual? 0 Play Time 00:10:39 Cumulative 356.9 hours Start 2023.10.10 @ 01:01:32 End 2023.10.10 @ 01:09:53 Sessions 1 Manual Loads 0 Difficulty Rogue Special Mode None Game No. 378 Rogue 378 Adventurer 0 Explorer 0 Win Type - Total 29 Types 16/3/4/1/2/0/3/0/0 Lore% 86 Gallery% 87 Achievement% 82 Wizard Run 0 Options --------- ASCII 0 Keyboard 0 Movement Mouse Keybinds 0 Fullscreen 2 Font 24/Smallcaps Map View 76x50 Tactical HUD 1 Map Filters NONE Filters NONE Steam 1 RUN: cb33a4af-6c8a-4e87-ac3e-6de1e1533af9